[Event "*** Titled Tuesday Blitz"]
[Site "Chess.com"]
[Date "2020.05.12"]
[Round "8"]
[White "Mbneu"]
[Black "Ranindu2003"]
[Result "0-1"]
[WhiteElo "2258"]
[BlackElo "2431"]
[TimeControl "180+1"]
[EndTime "11:32:55 PDT"]
[Termination "Ranindu2003 won by resignation"]

1. d4 {[%clk 0:03:00.9]} 1... Nf6 {[%clk 0:02:59.1]} 2. c4 {[%clk 0:03:01.8]}
2... e6 {[%clk 0:02:58.8]} 3. Nc3 {[%clk 0:02:59.7]} 3... c5 {[%clk 0:02:55.2]}
4. d5 {[%clk 0:02:58.6]} 4... exd5 {[%clk 0:02:51.9]} 5. cxd5 {[%clk 0:02:58.6]}
5... d6 {[%clk 0:02:52.3]} 6. e4 {[%clk 0:02:57.9]} 6... g6 {[%clk 0:02:51.3]}
7. f4 {[%clk 0:02:58.2]} 7... a6 {[%clk 0:02:45.1]} 8. a4 {[%clk 0:02:55.7]}
8... Bg7 {[%clk 0:02:44.6]} 9. Nf3 {[%clk 0:02:56.1]} 9... O-O {[%clk
0:02:43.1]} 10. Be2 {[%clk 0:02:56.6]} 10... Re8 {[%clk 0:02:39.9]} 11. e5
{[%clk 0:02:56.6]} 11... dxe5 {[%clk 0:02:23.9]} 12. fxe5 {[%clk 0:02:56.9]}
12... Ng4 {[%clk 0:02:19]} 13. e6 {[%clk 0:02:56.1]} 13... fxe6 {[%clk
0:02:13.2]} 14. d6 {[%clk 0:02:54.5]} 14... Nc6 {[%clk 0:02:06.4]} 15. Ng5
{[%clk 0:02:53.6]} 15... Nge5 {[%clk 0:01:45.5]} 16. O-O {[%clk 0:02:47.6]}
16... h6 {[%clk 0:01:35.3]} 17. Nge4 {[%clk 0:02:46.4]} 17... Nf7 {[%clk
0:01:21.2]} 18. Kh1 {[%clk 0:02:20.4]} 18... Nd4 {[%clk 0:01:17.1]} 19. Bf4
{[%clk 0:02:06.8]} 19... e5 {[%clk 0:01:08.8]} 20. Bg3 {[%clk 0:01:50.7]} 20...
Nxd6 {[%clk 0:01:03.1]} 21. Bg4 {[%clk 0:01:14]} 21... Bf5 {[%clk 0:00:48.7]}
22. Nxc5 {[%clk 0:01:06.5]} 22... Rc8 {[%clk 0:00:38.8]} 23. Bxf5 {[%clk
0:00:56.6]} 23... N6xf5 {[%clk 0:00:31.3]} 24. N5e4 {[%clk 0:00:42.6]} 24... Ne3
{[%clk 0:00:31.1]} 25. Qd3 {[%clk 0:00:35.2]} 25... Nxf1 {[%clk 0:00:30.8]} 26.
Rxf1 {[%clk 0:00:35.7]} 26... Nf5 {[%clk 0:00:30.9]} 27. Qb1 {[%clk 0:00:32.4]}
27... Rf8 {[%clk 0:00:26.1]} 28. Qa2+ {[%clk 0:00:27.1]} 28... Kh7 {[%clk
0:00:25.9]} 29. Bf2 {[%clk 0:00:26]} 29... Qd3 {[%clk 0:00:23.3]} 30. Rd1 {[%clk
0:00:25]} 30... Qc4 {[%clk 0:00:17.7]} 31. b3 {[%clk 0:00:20.1]} 31... Qc7
{[%clk 0:00:16.9]} 32. Qb2 {[%clk 0:00:17.5]} 32... Nd4 {[%clk 0:00:16.7]} 33.
Nd5 {[%clk 0:00:16.6]} 33... Qf7 {[%clk 0:00:16.6]} 34. Be3 {[%clk 0:00:15.2]}
34... Qxd5 {[%clk 0:00:15.9]} 0-1

[Event "*** Titled Tuesday Blitz"]
[Site "Chess.com"]
[Date "2020.05.12"]
[Round "8"]
[White "Evgeny81"]
[Black "AryanTari"]
[Result "1-0"]
[WhiteElo "2730"]
[BlackElo "2905"]
[TimeControl "180+1"]
[EndTime "11:32:56 PDT"]
[Termination "Evgeny81 won on time"]

1. d4 {[%clk 0:03:00.9]} 1... d5 {[%clk 0:02:59]} 2. c4 {[%clk 0:03:00.7]} 2...
e6 {[%clk 0:02:59.2]} 3. Nf3 {[%clk 0:03:01.3]} 3... Nf6 {[%clk 0:02:59.2]} 4.
Nc3 {[%clk 0:03:01.3]} 4... Be7 {[%clk 0:02:59.6]} 5. Bf4 {[%clk 0:03:00.2]}
5... O-O {[%clk 0:02:59.7]} 6. e3 {[%clk 0:03:00.8]} 6... Nbd7 {[%clk
0:03:00.3]} 7. cxd5 {[%clk 0:02:56.2]} 7... Nxd5 {[%clk 0:02:57.4]} 8. Nxd5
{[%clk 0:02:56.1]} 8... exd5 {[%clk 0:02:58.3]} 9. Bd3 {[%clk 0:02:56.4]} 9...
c5 {[%clk 0:02:54.8]} 10. O-O {[%clk 0:02:55.8]} 10... a6 {[%clk 0:02:41.3]} 11.
Ne5 {[%clk 0:02:46.2]} 11... Nxe5 {[%clk 0:02:31.6]} 12. Bxe5 {[%clk 0:02:45.7]}
12... c4 {[%clk 0:02:12.6]} 13. Bc2 {[%clk 0:02:45.1]} 13... Re8 {[%clk
0:02:11.8]} 14. a4 {[%clk 0:02:28.3]} 14... Be6 {[%clk 0:01:59.5]} 15. a5 {[%clk
0:02:26.6]} 15... Bd6 {[%clk 0:01:50]} 16. f4 {[%clk 0:02:21]} 16... Rc8 {[%clk
0:01:29.1]} 17. f5 {[%clk 0:01:54.6]} 17... Bxe5 {[%clk 0:01:29.3]} 18. fxe6
{[%clk 0:01:50.1]} 18... Rxe6 {[%clk 0:01:06.3]} 19. dxe5 {[%clk 0:01:41]} 19...
Rxe5 {[%clk 0:01:05.4]} 20. Qd4 {[%clk 0:01:26.8]} 20... Qg5 {[%clk 0:01:05.3]}
21. Rf3 {[%clk 0:01:22]} 21... g6 {[%clk 0:00:56.1]} 22. Raf1 {[%clk 0:01:15.6]}
22... Rc7 {[%clk 0:00:56.4]} 23. h4 {[%clk 0:01:04.9]} 23... Qh5 {[%clk
0:00:53.5]} 24. g4 {[%clk 0:01:02.5]} 24... Qxh4 {[%clk 0:00:33.6]} 25. Qxe5
{[%clk 0:01:02.5]} 25... Re7 {[%clk 0:00:32.6]} 26. Qf4 {[%clk 0:00:54.1]} 26...
h6 {[%clk 0:00:23.9]} 27. Kg2 {[%clk 0:00:49]} 27... h5 {[%clk 0:00:11.9]} 28.
Rh1 {[%clk 0:00:43.9]} 28... Qxg4+ {[%clk 0:00:12]} 29. Qxg4 {[%clk 0:00:44.2]}
29... hxg4 {[%clk 0:00:12.9]} 30. Rg3 {[%clk 0:00:44.2]} 30... f5 {[%clk
0:00:13.1]} 31. Rd1 {[%clk 0:00:43.5]} 31... Re5 {[%clk 0:00:12.6]} 32. b3
{[%clk 0:00:41.7]} 32... Kf7 {[%clk 0:00:07]} 33. Rd4 {[%clk 0:00:41]} 33... Kf6
{[%clk 0:00:05.6]} 34. bxc4 {[%clk 0:00:40.3]} 34... dxc4 {[%clk 0:00:06.5]} 35.
Rxc4 {[%clk 0:00:39]} 35... Rxa5 {[%clk 0:00:07.1]} 36. e4 {[%clk 0:00:34.6]}
36... b5 {[%clk 0:00:04.2]} 37. Rc5 {[%clk 0:00:31]} 37... Ra2 {[%clk
0:00:02.1]} 38. Kf1 {[%clk 0:00:25.8]} 38... b4 {[%clk 0:00:03]} 39. exf5 {[%clk
0:00:24.1]} 1-0

[Event "*** Titled Tuesday Blitz"]
[Site "Chess.com"]
[Date "2020.05.12"]
[Round "8"]
[White "AliKa2810"]
[Black "ZarinaShafigullina"]
[Result "1-0"]
[WhiteElo "2541"]
[BlackElo "2336"]
[TimeControl "180+1"]
[EndTime "11:32:57 PDT"]
[Termination "AliKa2810 won by resignation"]

1. d4 {[%clk 0:01:59.8]} 1... Nf6 {[%clk 0:02:59.9]} 2. c4 {[%clk 0:01:59]} 2...
e6 {[%clk 0:03:00.1]} 3. Nf3 {[%clk 0:01:58.5]} 3... b6 {[%clk 0:03:00.3]} 4. a3
{[%clk 0:01:58]} 4... Bb7 {[%clk 0:03:00.2]} 5. Nc3 {[%clk 0:01:57]} 5... d5
{[%clk 0:03:00.5]} 6. cxd5 {[%clk 0:01:56.7]} 6... exd5 {[%clk 0:03:00.9]} 7. g3
{[%clk 0:01:54.3]} 7... Nbd7 {[%clk 0:02:59]} 8. Bg2 {[%clk 0:01:53.6]} 8... Be7
{[%clk 0:02:55.3]} 9. O-O {[%clk 0:01:52.1]} 9... O-O {[%clk 0:02:55.1]} 10. Bg5
{[%clk 0:01:45.3]} 10... Re8 {[%clk 0:02:54.4]} 11. Ne5 {[%clk 0:01:40.1]} 11...
h6 {[%clk 0:02:50.7]} 12. Bf4 {[%clk 0:01:34.6]} 12... g5 {[%clk 0:02:45.6]} 13.
Nxd7 {[%clk 0:01:30.7]} 13... Qxd7 {[%clk 0:02:45.5]} 14. Be5 {[%clk 0:01:30.4]}
14... Ng4 {[%clk 0:02:38.9]} 15. h3 {[%clk 0:01:25.5]} 15... Nxe5 {[%clk
0:02:35.6]} 16. dxe5 {[%clk 0:01:25.8]} 16... c6 {[%clk 0:02:36.3]} 17. Qd2
{[%clk 0:01:22.3]} 17... Qe6 {[%clk 0:02:35]} 18. f4 {[%clk 0:01:20.6]} 18...
Rad8 {[%clk 0:02:32.2]} 19. Rad1 {[%clk 0:01:16.1]} 19... Ba8 {[%clk 0:02:31.4]}
20. e3 {[%clk 0:01:13.6]} 20... f6 {[%clk 0:02:07.7]} 21. exf6 {[%clk 0:01:09]}
21... Bxf6 {[%clk 0:02:07.8]} 22. Rde1 {[%clk 0:01:03.8]} 22... g4 {[%clk
0:02:07.7]} 23. Kh2 {[%clk 0:01:02.7]} 23... h5 {[%clk 0:02:06.5]} 24. Qf2
{[%clk 0:00:58.8]} 24... c5 {[%clk 0:01:55]} 25. e4 {[%clk 0:00:55.6]} 25...
Bxc3 {[%clk 0:01:49.3]} 26. bxc3 {[%clk 0:00:54.6]} 26... dxe4 {[%clk
0:01:49.8]} 27. f5 {[%clk 0:00:54.6]} 27... Qf6 {[%clk 0:01:22.2]} 28. Qf4
{[%clk 0:00:54.2]} 28... gxh3 {[%clk 0:01:13.3]} 29. Bxh3 {[%clk 0:00:52.8]}
29... Rd3 {[%clk 0:01:12.8]} 30. Bg2 {[%clk 0:00:46.7]} 30... Rxc3 {[%clk
0:01:10.4]} 31. Bxe4 {[%clk 0:00:45.7]} 31... Bxe4 {[%clk 0:01:09.7]} 32. Rxe4
{[%clk 0:00:45.9]} 32... Rxe4 {[%clk 0:01:07]} 33. Qxe4 {[%clk 0:00:45.5]} 33...
Qd4 {[%clk 0:00:39.5]} 34. Qe8+ {[%clk 0:00:42.8]} 34... Kh7 {[%clk 0:00:36.5]}
35. Qg6+ {[%clk 0:00:40.6]} 35... Kh8 {[%clk 0:00:36.7]} 36. f6 {[%clk
0:00:39.2]} 36... Qd2+ {[%clk 0:00:31.9]} 37. Kh3 {[%clk 0:00:32.7]} 37... Qd7+
{[%clk 0:00:30.8]} 38. Rf5 {[%clk 0:00:30.8]} 38... h4 {[%clk 0:00:29.1]} 39.
Qh5+ {[%clk 0:00:26.3]} 39... Qh7 {[%clk 0:00:20.3]} 40. Qxh7+ {[%clk
0:00:23.8]} 40... Kxh7 {[%clk 0:00:19.9]} 41. f7 {[%clk 0:00:24.4]} 41... Rxg3+
{[%clk 0:00:19.6]} 42. Kxh4 {[%clk 0:00:24.3]} 42... Rxa3 {[%clk 0:00:16.9]} 43.
f8=Q {[%clk 0:00:23.2]} 43... Kg6 {[%clk 0:00:16.1]} 1-0

[Event "*** Titled Tuesday Blitz"]
[Site "Chess.com"]
[Date "2020.05.12"]
[Round "8"]
[White "scabies1"]
[Black "petincash"]
[Result "0-1"]
[WhiteElo "2218"]
[BlackElo "2372"]
[TimeControl "180+1"]
[EndTime "11:32:58 PDT"]
[Termination "petincash won on time"]

1. e4 {[%clk 0:03:00.9]} 1... c5 {[%clk 0:03:00]} 2. Nf3 {[%clk 0:03:00.3]} 2...
g6 {[%clk 0:03:00.5]} 3. d4 {[%clk 0:02:59.4]} 3... cxd4 {[%clk 0:03:01.4]} 4.
Qxd4 {[%clk 0:02:59.8]} 4... Nf6 {[%clk 0:03:00.6]} 5. e5 {[%clk 0:03:00.2]}
5... Nc6 {[%clk 0:03:01.1]} 6. Qa4 {[%clk 0:03:00.6]} 6... Nd5 {[%clk
0:03:00.8]} 7. Qe4 {[%clk 0:03:01.1]} 7... Nb6 {[%clk 0:02:50.8]} 8. Nc3 {[%clk
0:02:57.5]} 8... Bg7 {[%clk 0:02:46]} 9. Bb5 {[%clk 0:02:50.2]} 9... O-O {[%clk
0:02:40.1]} 10. O-O {[%clk 0:02:47.5]} 10... d5 {[%clk 0:02:37.3]} 11. exd6
{[%clk 0:02:41.3]} 11... Bf5 {[%clk 0:02:36.2]} 12. dxe7 {[%clk 0:02:25.2]}
12... Nxe7 {[%clk 0:02:37.1]} 13. Qh4 {[%clk 0:02:24.9]} 13... Bxc2 {[%clk
0:02:21.7]} 14. Bg5 {[%clk 0:02:16.9]} 14... f6 {[%clk 0:02:16.7]} 15. Bd2
{[%clk 0:01:48.4]} 15... Nf5 {[%clk 0:01:59.1]} 16. Qh3 {[%clk 0:01:34.5]} 16...
a6 {[%clk 0:01:53.9]} 17. Be2 {[%clk 0:01:22.7]} 17... Re8 {[%clk 0:01:38.5]}
18. Rac1 {[%clk 0:01:19.5]} 18... Bd3 {[%clk 0:01:18.4]} 19. Bxd3 {[%clk
0:01:07.6]} 19... Qxd3 {[%clk 0:01:19.3]} 20. Rfd1 {[%clk 0:01:08]} 20... Qc4
{[%clk 0:01:10.5]} 21. b3 {[%clk 0:00:44]} 21... Qf7 {[%clk 0:01:03.2]} 22. Bf4
{[%clk 0:00:38.9]} 22... Rac8 {[%clk 0:00:57.7]} 23. g4 {[%clk 0:00:26]} 23...
Ne7 {[%clk 0:00:42.3]} 24. Nd4 {[%clk 0:00:25.9]} 24... Ned5 {[%clk 0:00:36.2]}
25. Nxd5 {[%clk 0:00:24.3]} 25... Nxd5 {[%clk 0:00:37.1]} 26. Bd2 {[%clk
0:00:23.3]} 26... Rcd8 {[%clk 0:00:30.5]} 27. Be3 {[%clk 0:00:12.1]} 27... Re4
{[%clk 0:00:28.4]} 28. Qf3 {[%clk 0:00:12]} 28... Rde8 {[%clk 0:00:26.2]} 29.
Bd2 {[%clk 0:00:11.8]} 29... Qd7 {[%clk 0:00:24.5]} 30. h3 {[%clk 0:00:09.6]}
30... Rxd4 {[%clk 0:00:22.9]} 31. Ba5 {[%clk 0:00:09.5]} 31... Ne7 {[%clk
0:00:14.8]} 32. Rxd4 {[%clk 0:00:05.7]} 32... Qxd4 {[%clk 0:00:15.7]} 33. Qxb7
{[%clk 0:00:06.4]} 33... Nd5 {[%clk 0:00:13.4]} 34. Qd7 {[%clk 0:00:04.9]} 34...
Re7 {[%clk 0:00:11.1]} 35. Qd8+ {[%clk 0:00:03.5]} 35... Kf7 {[%clk 0:00:11]}
0-1

[Event "*** Titled Tuesday Blitz"]
[Site "Chess.com"]
[Date "2020.05.12"]
[Round "8"]
[White "Bathory44"]
[Black "OK97"]
[Result "1/2-1/2"]
[WhiteElo "2611"]
[BlackElo "2753"]
[TimeControl "180+1"]
[EndTime "11:32:59 PDT"]
[Termination "Game drawn by repetition"]

1. e4 {[%clk 0:03:00.9]} 1... g6 {[%clk 0:02:59.2]} 2. d4 {[%clk 0:03:00]} 2...
Bg7 {[%clk 0:02:59.6]} 3. c4 {[%clk 0:03:00.5]} 3... e6 {[%clk 0:02:59.3]} 4.
Nc3 {[%clk 0:02:59.6]} 4... Ne7 {[%clk 0:02:59.8]} 5. h4 {[%clk 0:02:58.5]} 5...
d5 {[%clk 0:02:59.5]} 6. e5 {[%clk 0:02:45.8]} 6... c5 {[%clk 0:02:57]} 7. dxc5
{[%clk 0:02:35.4]} 7... Nbc6 {[%clk 0:02:49.1]} 8. h5 {[%clk 0:02:21.5]} 8...
Qa5 {[%clk 0:02:36.8]} 9. h6 {[%clk 0:02:15.2]} 9... Bxe5 {[%clk 0:02:35.8]} 10.
Nf3 {[%clk 0:02:15]} 10... d4 {[%clk 0:01:40.3]} 11. Nxe5 {[%clk 0:01:39.6]}
11... dxc3 {[%clk 0:01:40]} 12. Nxc6 {[%clk 0:01:25.3]} 12... Nxc6 {[%clk
0:01:39.6]} 13. bxc3 {[%clk 0:01:18.9]} 13... Qxc3+ {[%clk 0:01:38.6]} 14. Bd2
{[%clk 0:01:18.8]} 14... Qe5+ {[%clk 0:01:38.5]} 15. Be2 {[%clk 0:01:15.6]}
15... O-O {[%clk 0:01:12]} 16. O-O {[%clk 0:01:08.8]} 16... Rd8 {[%clk
0:01:06.3]} 17. Bf3 {[%clk 0:01:01.2]} 17... Qxc5 {[%clk 0:00:42.9]} 18. Bxc6
{[%clk 0:00:50.9]} 18... Qxc6 {[%clk 0:00:30.7]} 19. Qe2 {[%clk 0:00:43.9]}
19... f6 {[%clk 0:00:28.7]} 20. Bc3 {[%clk 0:00:33.4]} 20... e5 {[%clk 0:00:24]}
21. f4 {[%clk 0:00:29.5]} 21... Be6 {[%clk 0:00:23.9]} 22. Rf2 {[%clk
0:00:11.7]} 22... Bxc4 {[%clk 0:00:23.6]} 23. Qb2 {[%clk 0:00:11.5]} 23... Rd3
{[%clk 0:00:17.5]} 24. fxe5 {[%clk 0:00:11]} 24... f5 {[%clk 0:00:17.5]} 25. e6
{[%clk 0:00:11.3]} 25... Bxe6 {[%clk 0:00:11]} 26. Bb4 {[%clk 0:00:11]} 26...
Qd7 {[%clk 0:00:10.6]} 27. Re1 {[%clk 0:00:10.5]} 27... Rd1 {[%clk 0:00:08.4]}
28. Re2 {[%clk 0:00:10.4]} 28... Rxe1+ {[%clk 0:00:08.3]} 29. Rxe1 {[%clk
0:00:11.3]} 29... Re8 {[%clk 0:00:08.5]} 30. Qf6 {[%clk 0:00:10.6]} 30... Qf7
{[%clk 0:00:08.2]} 31. Qd4 {[%clk 0:00:08.8]} 31... a6 {[%clk 0:00:07.9]} 32.
Bc3 {[%clk 0:00:09.1]} 32... Kf8 {[%clk 0:00:06]} 33. Bb4+ {[%clk 0:00:08.8]}
33... Kg8 {[%clk 0:00:06.2]} 34. Bc3 {[%clk 0:00:09.3]} 34... Kf8 {[%clk
0:00:06.1]} 35. Qd6+ {[%clk 0:00:09.5]} 35... Qe7 {[%clk 0:00:05.8]} 36. Qd4
{[%clk 0:00:09.6]} 36... Qf7 {[%clk 0:00:04.5]} 1/2-1/2

[Event "*** Titled Tuesday Blitz"]
[Site "Chess.com"]
[Date "2020.05.12"]
[Round "8"]
[White "Mikhail_Biryukov"]
[Black "2L8IWUN"]
[Result "1-0"]
[WhiteElo "2647"]
[BlackElo "2458"]
[TimeControl "180+1"]
[EndTime "11:32:59 PDT"]
[Termination "Mikhail_Biryukov won by resignation"]

1. e4 {[%clk 0:03:00.9]} 1... e5 {[%clk 0:02:59.3]} 2. Nf3 {[%clk 0:02:59.4]}
2... Nc6 {[%clk 0:02:57.4]} 3. d4 {[%clk 0:02:58.9]} 3... exd4 {[%clk
0:02:55.6]} 4. Nxd4 {[%clk 0:02:59.8]} 4... Nf6 {[%clk 0:02:56.4]} 5. Nc3 {[%clk
0:02:56.8]} 5... Bb4 {[%clk 0:02:56.3]} 6. Nxc6 {[%clk 0:02:56.8]} 6... bxc6
{[%clk 0:02:57.2]} 7. Bd3 {[%clk 0:02:57.2]} 7... d5 {[%clk 0:02:54.5]} 8. exd5
{[%clk 0:02:58.1]} 8... O-O {[%clk 0:02:53.9]} 9. O-O {[%clk 0:02:57.9]} 9...
cxd5 {[%clk 0:02:50.6]} 10. Bg5 {[%clk 0:02:57.3]} 10... c6 {[%clk 0:02:46.9]}
11. Na4 {[%clk 0:02:57.3]} 11... h6 {[%clk 0:02:45.2]} 12. Bh4 {[%clk
0:02:56.7]} 12... Be7 {[%clk 0:02:25.9]} 13. c4 {[%clk 0:02:55.9]} 13... Be6
{[%clk 0:02:22.6]} 14. Qc2 {[%clk 0:02:55.2]} 14... Rb8 {[%clk 0:02:13.7]} 15.
Rfd1 {[%clk 0:02:49.9]} 15... Qa5 {[%clk 0:02:12.1]} 16. b3 {[%clk 0:02:43.7]}
16... Rfd8 {[%clk 0:02:05.9]} 17. Bg3 {[%clk 0:02:39.1]} 17... Bd6 {[%clk
0:02:04.9]} 18. Bxd6 {[%clk 0:02:38.2]} 18... Rxd6 {[%clk 0:02:05.8]} 19. cxd5
{[%clk 0:02:33.6]} 19... Nxd5 {[%clk 0:02:00.8]} 20. Qc5 {[%clk 0:02:27]} 20...
Qxc5 {[%clk 0:01:57.2]} 21. Nxc5 {[%clk 0:02:27.9]} 21... Rbd8 {[%clk
0:01:54.6]} 22. Nb7 {[%clk 0:02:24.7]} 22... R6d7 {[%clk 0:01:49.2]} 23. Nxd8
{[%clk 0:02:23.9]} 23... Rxd8 {[%clk 0:01:47.3]} 24. Bc4 {[%clk 0:02:20.9]}
24... Kf8 {[%clk 0:01:29.2]} 25. Rd2 {[%clk 0:02:18.8]} 25... Ke7 {[%clk
0:01:26.8]} 26. Re1 {[%clk 0:02:17.8]} 26... Kd6 {[%clk 0:01:23.5]} 27. f4
{[%clk 0:02:12.4]} 27... Kc5 {[%clk 0:01:20.1]} 28. Kf2 {[%clk 0:02:09]} 28...
a5 {[%clk 0:01:15.9]} 29. Kf3 {[%clk 0:02:04.4]} 29... g6 {[%clk 0:01:11.6]} 30.
h3 {[%clk 0:02:03.9]} 30... h5 {[%clk 0:01:10.6]} 31. Rc1 {[%clk 0:01:46.8]}
31... Kb6 {[%clk 0:01:08.1]} 32. Rd4 {[%clk 0:01:25.5]} 32... Kb7 {[%clk
0:01:01.6]} 33. Bd3 {[%clk 0:01:24.7]} 33... Kb6 {[%clk 0:00:59.1]} 34. Be4
{[%clk 0:01:23.5]} 34... f5 {[%clk 0:00:55.9]} 35. Bb1 {[%clk 0:01:22.6]} 35...
Kb7 {[%clk 0:00:54]} 36. Re1 {[%clk 0:01:18.9]} 36... Rd6 {[%clk 0:00:54]} 37.
Bd3 {[%clk 0:01:17.9]} 37... Kb6 {[%clk 0:00:52.6]} 38. Bc4 {[%clk 0:01:17.4]}
38... Bf7 {[%clk 0:00:50.3]} 39. Kg3 {[%clk 0:01:13.6]} 39... Kc5 {[%clk
0:00:47]} 40. Rd2 {[%clk 0:01:13.6]} 40... Rd7 {[%clk 0:00:44.8]} 41. Re5 {[%clk
0:01:13.2]} 41... a4 {[%clk 0:00:41.6]} 42. Bxd5 {[%clk 0:01:09.2]} 42... Bxd5
{[%clk 0:00:40.6]} 43. bxa4 {[%clk 0:01:08.9]} 43... Kb4 {[%clk 0:00:40.7]} 44.
Kh4 {[%clk 0:01:07.7]} 44... Kxa4 {[%clk 0:00:39.8]} 45. Kg5 {[%clk 0:01:07.7]}
45... Rd6 {[%clk 0:00:36.2]} 46. Re7 {[%clk 0:01:05.6]} 46... Kb4 {[%clk
0:00:35.2]} 47. g3 {[%clk 0:01:02.6]} 47... Kc3 {[%clk 0:00:33.9]} 48. Rd1
{[%clk 0:01:00.2]} 48... Kc2 {[%clk 0:00:34.2]} 49. Ree1 {[%clk 0:00:59.5]}
49... c5 {[%clk 0:00:32.3]} 50. Rc1+ {[%clk 0:00:57.5]} 50... Kb2 {[%clk
0:00:31.6]} 51. Rxc5 {[%clk 0:00:57.7]} 51... Be4 {[%clk 0:00:30.9]} 52. Re2+
{[%clk 0:00:56.9]} 52... Ka3 {[%clk 0:00:30.3]} 53. Rc3+ {[%clk 0:00:56.3]}
53... Kb4 {[%clk 0:00:29.6]} 54. Rce3 {[%clk 0:00:56.2]} 1-0

[Event "*** Titled Tuesday Blitz"]
[Site "Chess.com"]
[Date "2020.05.12"]
[Round "8"]
[White "tacticthunder"]
[Black "Tashik"]
[Result "1-0"]
[WhiteElo "2616"]
[BlackElo "2450"]
[TimeControl "180+1"]
[EndTime "11:32:59 PDT"]
[Termination "tacticthunder won by resignation"]

1. e4 {[%clk 0:03:00.9]} 1... e5 {[%clk 0:02:58.4]} 2. Nf3 {[%clk 0:02:58.2]}
2... Nc6 {[%clk 0:02:58.8]} 3. d4 {[%clk 0:02:55.8]} 3... exd4 {[%clk
0:02:58.4]} 4. Nxd4 {[%clk 0:02:56.7]} 4... Nf6 {[%clk 0:02:58.3]} 5. Nc3 {[%clk
0:02:56.3]} 5... Bb4 {[%clk 0:02:57.6]} 6. Nxc6 {[%clk 0:02:56.2]} 6... bxc6
{[%clk 0:02:58.4]} 7. Bd3 {[%clk 0:02:56.8]} 7... O-O {[%clk 0:02:58.9]} 8. O-O
{[%clk 0:02:56.5]} 8... Re8 {[%clk 0:02:59.5]} 9. Re1 {[%clk 0:02:55.6]} 9... h6
{[%clk 0:02:48.9]} 10. Bd2 {[%clk 0:02:43.2]} 10... d6 {[%clk 0:02:47]} 11. h3
{[%clk 0:02:38.6]} 11... Rb8 {[%clk 0:02:46.3]} 12. Rb1 {[%clk 0:02:36.5]} 12...
Nd7 {[%clk 0:02:44.3]} 13. a3 {[%clk 0:02:34.3]} 13... Bc5 {[%clk 0:02:40.1]}
14. Na4 {[%clk 0:02:33.9]} 14... Bd4 {[%clk 0:02:38.7]} 15. c3 {[%clk
0:02:30.1]} 15... Bf6 {[%clk 0:02:33.2]} 16. f4 {[%clk 0:02:24.4]} 16... c5
{[%clk 0:02:20.3]} 17. b4 {[%clk 0:02:11.9]} 17... cxb4 {[%clk 0:02:09.4]} 18.
cxb4 {[%clk 0:02:12.8]} 18... Bb7 {[%clk 0:01:50]} 19. Qc2 {[%clk 0:02:12.4]}
19... Bd4+ {[%clk 0:01:41.4]} 20. Be3 {[%clk 0:02:04.5]} 20... Bxe3+ {[%clk
0:01:37.4]} 21. Rxe3 {[%clk 0:02:05.4]} 21... Qf6 {[%clk 0:01:29.9]} 22. Qf2
{[%clk 0:01:41.3]} 22... Qd4 {[%clk 0:01:13.9]} 23. Rbe1 {[%clk 0:01:31.8]}
23... c5 {[%clk 0:01:02]} 24. Qb2 {[%clk 0:01:28.9]} 24... Qxb2 {[%clk
0:00:59.4]} 25. Nxb2 {[%clk 0:01:29.8]} 25... cxb4 {[%clk 0:00:57.4]} 26. axb4
{[%clk 0:01:30.7]} 26... Bc6 {[%clk 0:00:58]} 27. Nc4 {[%clk 0:01:30.1]} 27...
Rxb4 {[%clk 0:00:56.2]} 28. Nxd6 {[%clk 0:01:30.2]} 28... Reb8 {[%clk
0:00:56.8]} 29. Bc4 {[%clk 0:01:27]} 29... Rf8 {[%clk 0:00:45]} 30. e5 {[%clk
0:01:27.3]} 30... Nb6 {[%clk 0:00:44.5]} 31. Ba2 {[%clk 0:01:09.4]} 31... Rxf4
{[%clk 0:00:43.9]} 32. Ra3 {[%clk 0:00:58.3]} 32... Na4 {[%clk 0:00:36.8]} 33.
Rc1 {[%clk 0:00:51.6]} 33... Bd7 {[%clk 0:00:27.7]} 34. Nxf7 {[%clk 0:00:41]}
34... Kh7 {[%clk 0:00:21]} 35. e6 {[%clk 0:00:40.8]} 35... Bb5 {[%clk
0:00:18.8]} 36. Nd6 {[%clk 0:00:36.4]} 36... a6 {[%clk 0:00:18.6]} 37. e7 {[%clk
0:00:20.7]} 37... R8f6 {[%clk 0:00:13.8]} 38. e8=Q {[%clk 0:00:16.2]} 38... Bxe8
{[%clk 0:00:12.5]} 39. Nxe8 {[%clk 0:00:17.1]} 39... Re6 {[%clk 0:00:10.7]} 40.
Bxe6 {[%clk 0:00:16.2]} 1-0